[Event "African Online-ch U20-Open 2021"]
[Site "Online"]
[Date "2021.02.01"]
[Round "8.12"]
[White "Pungo, Honorato"]
[Black "Ben Abbes, Ayoub"]
[Result "0-1"]
[ECO "C54"]
[WhiteElo "1550"]
[BlackElo "1481"]
[Annotator "NA RC"]
[PlyCount "92"]
[EventDate "2021.02.01"]
[EventType "swiss"]
[EventCountry "NET"]
[SourceTitle "playchess.com"]
[Source "ChessBase"]
[SourceQuality "1"]
[TimeControl "1500+10"]

1. e4 {[%emt 0:00:00]} e5 {[%emt 0:00:04]} 2. Nf3 {[%emt 0:00:05]} Nc6 {[%emt 0:00:05]} 3. Bc4 {[%emt 0:00:07]} Bc5 {[%emt 0:00:04]} 4. c3 {[%emt 0:00:04]} Nf6 {[%emt 0:00:04]} 5. d4 {[%emt 0:00:04]} exd4 {[%emt 0:00:04]} 6. cxd4 {[%emt 0:00:04]} Bb4+ {[%emt 0:00:11]} 7. Bd2 {[%emt 0:00:05]} Bxd2+ {[%emt 0:00:05]} 8. Nbxd2 {[%emt 0:00:02]} d5 {[%emt 0:00:07]} 9. exd5 {[%emt 0:00:03]} Nxd5 {[%emt 0:00:04]} 10. O-O {[%emt 0:00:14]} O-O {[%emt 0:00:07]} 11. h3 {[%emt 0:00:04]} Nb6 {[%emt 0:00:14]} 12. d5 {[%emt 0:02:17]} Nxd5 {[%emt 0:00:17]} 13. Ne4 {[%emt 0:00:23]} Nb6 {[%emt 0:00:16]} 14. Bd3 {[%emt 0:00:05]} Nb4 {[%emt 0:00:22]} 15. Bc2 {[%emt 0:01:38]} Qxd1 {[%emt 0:00:39]} 16. Bxd1 {[%emt 0:00:04]} Bf5 {[%emt 0:00:07]} 17. Nc5 {[%emt 0:00:11]} Rab8 {[%emt 0:00:22]} 18. a3 {[%emt 0:00:11]} Nd3 {[%emt 0:00:04]} 19. Nxd3 {[%emt 0:00:18]} Bxd3 {[%emt 0:00:04]} 20. Re1 {[%emt 0:00:02]} Rfe8 {[%emt 0:00:05]} 21. Bb3 {[%emt 0:00:04]} Kf8 {[%emt 0:00:33]} 22. Ne5 {[%emt 0:00:14]} Bg6 {[%emt 0:00:18]} 23. a4 {[%emt 0:00:15]} f6 {[%emt 0:00:07]} 24. Nxg6+ {[%emt 0:00:20]} hxg6 {[%emt 0:00:04]} 25. h4 {[%emt 0:00:06]} Rxe1+ {[%emt 0:00:13]} 26. Rxe1 {[%emt 0:00:07]} Re8 {[%emt 0:00:03]} 27. Kf1 {[%emt 0:00:22]} Rxe1+ {[%emt 0:00:05]} 28. Kxe1 {[%emt 0:00:02]} a5 {[%emt 0:00:03]} 29. Kd2 {[%emt 0:00:10]} Ke7 {[%emt 0:00:04]} 30. Kd3 {[%emt 0:00:06]} Kd6 {[%emt 0:00:04]} 31. Kd4 {[%emt 0:00:03]} c5+ {[%emt 0:00:03]} 32. Ke3 {[%emt 0:00:36]} Nd5+ {[%emt 0:00:04]} 33. Ke4 {[%emt 0:00:27]} f5+ {[%emt 0:00:13]} 34. Kf3 {[%emt 0:00:11]} Ke5 {[%emt 0:00:06]} 35. Bxd5 {[%emt 0:05:02]} Kxd5 {[%emt 0:00:03]} 36. Kf4 {[%emt 0:00:02]} Kc4 {[%emt 0:00:31]} 37. Kg5 {[%emt 0:00:07]} Kb3 {[%emt 0:00:03]} 38. Kxg6 {[%emt 0:00:02]} Kxb2 {[%emt 0:00:02]} 39. Kxg7 {[%emt 0:00:01]} c4 {[%emt 0:00:02]} 40. h5 {[%emt 0:00:02]} c3 {[%emt 0:00:02]} 41. h6 {[%emt 0:00:01]} c2 {[%emt 0:00:02]} 42. h7 {[%emt 0:00:04]} c1=Q {[%emt 0:00:03]} 43. h8=Q {[%emt 0:00:04]} Qc3+ {[%emt 0:00:02]} 44. Kh7 {[%emt 0:00:05]} Qxh8+ {[%emt 0:00:03]} 45. Kxh8 {[%emt 0:00:02]} Kb3 {[%emt 0:00:03]} 46. f3 {[%emt 0:00:07]} f4 {[%emt 0:00:03]} 0-1

[Event "African Online-ch U20-Open 2021"]
[Site "Online"]
[Date "2021.02.01"]
[Round "8.13"]
[White "Selogelo Othata"]
[Black "Ofile Masilo"]
[Result "1-0"]
[ECO "B86"]
[WhiteElo "1725"]
[BlackElo "1457"]
[Annotator "NA RC"]
[PlyCount "45"]
[EventDate "2021.02.01"]
[EventType "swiss"]
[EventCountry "NET"]
[SourceTitle "playchess.com"]
[Source "ChessBase"]
[SourceQuality "1"]
[TimeControl "1500+10"]

1. e4 {[%emt 0:00:08]} c5 {[%emt 0:14:54]} 2. Nf3 {[%emt 0:00:06]} d6 {[%emt 0:00:03]} 3. d4 {[%emt 0:00:04]} cxd4 {[%emt 0:00:03]} 4. Nxd4 {[%emt 0:00:02]} Nf6 {[%emt 0:00:02]} 5. Nc3 {[%emt 0:00:04]} a6 {[%emt 0:00:05]} 6. Bc4 {[%emt 0:00:03]} e6 {[%emt 0:00:04]} 7. Bb3 {[%emt 0:00:03]} Be7 {[%emt 0:00:06]} 8. Be3 {[%emt 0:00:16]} b5 {[%emt 0:00:03]} 9. f4 {[%emt 0:00:05]} b4 {[%emt 0:00:21]} 10. Na4 {[%emt 0:00:04]} O-O {[%emt 0:00:10]} 11. e5 {[%emt 0:00:13]} dxe5 {[%emt 0:00:07]} 12. fxe5 {[%emt 0:00:03]} Nd5 {[%emt 0:00:24]} 13. Bxd5 {[%emt 0:01:58]} exd5 {[%emt 0:01:06]} 14. Qf3 {[%emt 0:00:35]} Bb7 {[%emt 0:00:50]} 15. O-O {[%emt 0:01:54]} Nc6 {[%emt 0:00:11]} 16. Qg3 {[%emt 0:01:04]} Nxd4 {[%emt 0:00:27]} 17. Bxd4 {[%emt 0:00:05]} Bh4 {[%emt 0:00:48]} 18. Qf3 {[%emt 0:02:30]} Bc6 {[%emt 0:00:49]} 19. Nc5 {[%emt 0:00:33]} Be7 {[%emt 0:00:23]} 20. e6 {[%emt 0:01:28]} fxe6 {[%emt 0:00:30]} 21. Qg4 {[%emt 0:00:07]} Rxf1+ {[%emt 0:00:58]} 22. Rxf1 {[%emt 0:00:07]} Bxc5 {[%emt 0:00:20]} 23. Qxg7# {[%emt 0:00:08]} 1-0

[Event "African Online-ch U20-Open 2021"]
[Site "Online"]
[Date "2021.02.01"]
[Round "8.14"]
[White "Mcligeyo, Robert"]
[Black "Machinya Desire"]
[Result "0-1"]
[ECO "B21"]
[WhiteElo "1688"]
[BlackElo "1638"]
[Annotator "NA RC"]
[PlyCount "108"]
[EventDate "2021.02.01"]
[EventType "swiss"]
[EventCountry "NET"]
[SourceTitle "playchess.com"]
[Source "ChessBase"]
[SourceQuality "1"]
[TimeControl "1500+10"]

1. e4 {[%emt 0:00:00]} c5 {[%emt 0:00:47]} 2. d4 {[%emt 0:00:04]} cxd4 {[%emt 0:00:05]} 3. c3 {[%emt 0:00:02]} dxc3 {[%emt 0:00:03]} 4. Nxc3 {[%emt 0:00:03]} g6 {[%emt 0:00:16]} 5. Bc4 {[%emt 0:00:03]} Bg7 {[%emt 0:00:07]} 6. Nf3 {[%emt 0:00:04]} e6 {[%emt 0:00:20]} 7. O-O {[%emt 0:00:09]} Ne7 {[%emt 0:00:03]} 8. Bg5 {[%emt 0:00:05]} O-O {[%emt 0:00:04]} 9. e5 {[%emt 0:00:04]} Nbc6 {[%emt 0:00:02]} 10. Re1 {[%emt 0:00:08]} Qa5 {[%emt 0:00:13]} 11. Ne4 {[%emt 0:01:12]} Kh8 {[%emt 0:02:29]} 12. Nf6 {[%emt 0:04:13]} Ng8 {[%emt 0:02:09]} 13. Nxd7 {[%emt 0:05:36]} Bxd7 {[%emt 0:00:09]} 14. Qxd7 {[%emt 0:00:03]} Nxe5 {[%emt 0:00:16]} 15. Nxe5 {[%emt 0:00:20]} Bxe5 {[%emt 0:00:04]} 16. Qxb7 {[%emt 0:01:15]} Bxh2+ {[%emt 0:00:09]} 17. Kxh2 {[%emt 0:00:13]} Qxg5 {[%emt 0:00:04]} 18. Bb3 {[%emt 0:00:38]} Nh6 {[%emt 0:00:29]} 19. Qf3 {[%emt 0:02:32]} Rad8 {[%emt 0:04:03]} 20. Kg1 {[%emt 0:01:43]} Nf5 {[%emt 0:00:27]} 21. Rad1 {[%emt 0:00:33]} Kg8 {[%emt 0:01:15]} 22. Bc2 {[%emt 0:02:16]} Nd4 {[%emt 0:00:51]} 23. Qc3 {[%emt 0:00:45]} e5 {[%emt 0:01:37]} 24. Bb3 {[%emt 0:00:41]} Rc8 {[%emt 0:00:58]} 25. Qe3 {[%emt 0:00:10]} Qxe3 {[%emt 0:00:22]} 26. Rxe3 {[%emt 0:00:04]} Nxb3 {[%emt 0:00:04]} 27. Rxb3 {[%emt 0:00:05]} Rc7 {[%emt 0:00:16]} 28. Rd5 {[%emt 0:00:10]} f6 {[%emt 0:00:12]} 29. Rd6 {[%emt 0:00:06]} f5 {[%emt 0:01:00]} 30. Rbd3 {[%emt 0:00:54]} e4 {[%emt 0:00:12]} 31. Rd2 {[%emt 0:00:04]} Re8 {[%emt 0:01:27]} 32. Rd7 {[%emt 0:00:04]} Re7 {[%emt 0:00:09]} 33. Rxe7 {[%emt 0:00:40]} Rxe7 {[%emt 0:00:03]} 34. Rd8+ {[%emt 0:00:02]} Kf7 {[%emt 0:00:03]} 35. Ra8 {[%emt 0:00:04]} Kf6 {[%emt 0:00:04]} 36. Kf1 {[%emt 0:00:02]} Rc7 {[%emt 0:00:04]} 37. g3 {[%emt 0:00:08]} Kg5 {[%emt 0:00:06]} 38. Kg2 {[%emt 0:00:06]} Kg4 {[%emt 0:00:09]} 39. b4 {[%emt 0:00:49]} Rb7 {[%emt 0:01:48]} 40. a3 {[%emt 0:00:05]} h5 {[%emt 0:00:54]} 41. Rg8 {[%emt 0:00:31]} Rb6 {[%emt 0:00:33]} 42. Rg7 {[%emt 0:00:09]} a6 {[%emt 0:00:04]} 43. Ra7 {[%emt 0:01:24]} g5 {[%emt 0:02:02]} 44. Re7 {[%emt 0:00:25]} Rd6 {[%emt 0:00:39]} 45. a4 {[%emt 0:00:09]} Rd4 {[%emt 0:00:08]} 46. Re6 {[%emt 0:00:28]} Rxb4 {[%emt 0:00:07]} 47. Rxa6 {[%emt 0:00:03]} Rb2 {[%emt 0:00:03]} 48. a5 {[%emt 0:01:17]} e3 {[%emt 0:00:36]} 49. Re6 {[%emt 0:00:04]} Rxf2+ {[%emt 0:00:05]} 50. Kg1 {[%emt 0:00:03]} f4 {[%emt 0:00:05]} 51. gxf4 {[%emt 0:00:15]} gxf4 {[%emt 0:00:04]} 52. a6 {[%emt 0:00:18]} Ra2 {[%emt 0:00:05]} 53. Rg6+ {[%emt 0:00:10]} Kf3 {[%emt 0:00:04]} 54. Rf6 {[%emt 0:00:07]} e2 {[%emt 0:00:09]} 0-1

[Event "African Online-ch U20-Open 2021"]
[Site "Online"]
[Date "2021.02.01"]
[Round "8.15"]
[White "Darius Patlo Banda"]
[Black "van der Merwe, Alexander"]
[Result "0-1"]
[ECO "A59"]
[WhiteElo "1369"]
[BlackElo "1655"]
[Annotator "NA RC"]
[PlyCount "54"]
[EventDate "2021.02.01"]
[EventType "swiss"]
[EventCountry "NET"]
[SourceTitle "playchess.com"]
[Source "ChessBase"]
[SourceQuality "1"]
[TimeControl "1500+10"]

1. d4 {[%emt 0:00:00]} Nf6 {[%emt 0:00:04]} 2. c4 {[%emt 0:00:06]} c5 {[%emt 0:00:03]} 3. d5 {[%emt 0:00:10]} b5 {[%emt 0:00:04]} 4. cxb5 {[%emt 0:00:20]} a6 {[%emt 0:00:54]} 5. Nc3 {[%emt 0:00:44]} axb5 {[%emt 0:00:08]} 6. Nxb5 {[%emt 0:00:17]} Ba6 {[%emt 0:00:03]} 7. Nc3 {[%emt 0:00:08]} g6 {[%emt 0:00:05]} 8. e4 {[%emt 0:00:04]} Bxf1 {[%emt 0:00:02]} 9. Kxf1 {[%emt 0:00:07]} d6 {[%emt 0:00:03]} 10. Bg5 {[%emt 0:00:05]} Bg7 {[%emt 0:00:04]} 11. Nf3 {[%emt 0:00:16]} Nbd7 {[%emt 0:00:12]} 12. Ke2 {[%emt 0:00:09]} O-O {[%emt 0:00:09]} 13. Re1 {[%emt 0:00:06]} Qa5 {[%emt 0:00:06]} 14. Kf1 {[%emt 0:00:18]} Rfb8 {[%emt 0:00:04]} 15. Qc2 {[%emt 0:00:12]} h6 {[%emt 0:00:41]} 16. Bd2 {[%emt 0:00:28]} Ng4 {[%emt 0:00:19]} 17. h3 {[%emt 0:00:23]} Nge5 {[%emt 0:00:05]} 18. Nxe5 {[%emt 0:00:28]} Nxe5 {[%emt 0:00:03]} 19. Kg1 {[%emt 0:00:08]} Nc4 {[%emt 0:00:34]} 20. Reb1 {[%emt 0:01:20]} Rb7 {[%emt 0:00:41]} 21. a3 {[%emt 0:01:22]} Rab8 {[%emt 0:04:54]} 22. Bc1 {[%emt 0:01:05]} Kh7 {[%emt 0:05:29]} 23. Kf1 {[%emt 0:04:35]} Qb6 {[%emt 0:01:43]} 24. b4 {[%emt 0:03:13]} cxb4 {[%emt 0:01:23]} 25. Rxb4 {[%emt 0:00:18]} Qa6 {[%emt 0:01:01]} 26. Rxb7 {[%emt 0:10:37]} Ne3+ {[%emt 0:00:12]} 27. Kg1 {[%emt 0:02:17]} Qf1+ {[%emt 0:00:10]} 0-1

[Event "African Online-ch U20-Open 2021"]
[Site "Online"]
[Date "2021.02.01"]
[Round "8.16"]
[White "Masaiti, Gideon"]
[Black "Palmer, Reegan"]
[Result "0-1"]
[ECO "C55"]
[WhiteElo "1442"]
[BlackElo "1325"]
[Annotator "NA RC"]
[PlyCount "76"]
[EventDate "2021.02.01"]
[EventType "swiss"]
[EventCountry "NET"]
[SourceTitle "playchess.com"]
[Source "ChessBase"]
[SourceQuality "1"]
[TimeControl "1500+10"]

1. e4 {[%emt 0:00:00]} e5 {[%emt 0:00:05]} 2. Nf3 {[%emt 0:00:04]} Nc6 {[%emt 0:00:03]} 3. Bc4 {[%emt 0:00:04]} Nf6 {[%emt 0:00:02]} 4. d3 {[%emt 0:00:04]} d6 {[%emt 0:00:33]} 5. Nc3 {[%emt 0:00:41]} Bg4 {[%emt 0:00:12]} 6. Bg5 {[%emt 0:00:23]} Nd4 {[%emt 0:00:54]} 7. h3 {[%emt 0:00:18]} Bxf3 {[%emt 0:00:54]} 8. gxf3 {[%emt 0:00:05]} Be7 {[%emt 0:00:02]} 9. Nb5 {[%emt 0:00:30]} Nxb5 {[%emt 0:00:06]} 10. Bxb5+ {[%emt 0:00:03]} c6 {[%emt 0:00:02]} 11. Bxf6 {[%emt 0:00:09]} Bxf6 {[%emt 0:00:06]} 12. Bc4 {[%emt 0:00:04]} Bg5 {[%emt 0:00:26]} 13. Qe2 {[%emt 0:00:09]} O-O {[%emt 0:00:27]} 14. h4 {[%emt 0:00:07]} Bf4 {[%emt 0:00:03]} 15. Qf1 {[%emt 0:00:14]} a5 {[%emt 0:00:49]} 16. a3 {[%emt 0:00:05]} d5 {[%emt 0:00:10]} 17. Bb3 {[%emt 0:00:55]} a4 {[%emt 0:00:03]} 18. Ba2 {[%emt 0:00:08]} Qa5+ {[%emt 0:00:03]} 19. c3 {[%emt 0:00:08]} d4 {[%emt 0:00:02]} 20. Ke2 {[%emt 0:01:05]} dxc3 {[%emt 0:00:08]} 21. bxc3 {[%emt 0:00:23]} Qxc3 {[%emt 0:00:03]} 22. Qd1 {[%emt 0:00:03]} Rad8 {[%emt 0:00:09]} 23. Rb1 {[%emt 0:09:51]} b5 {[%emt 0:00:29]} 24. Rb4 {[%emt 0:01:13]} Qxa3 {[%emt 0:00:13]} 25. Qb1 {[%emt 0:00:08]} Rxd3 {[%emt 0:01:13]} 26. Qxd3 {[%emt 0:01:29]} Qxb4 {[%emt 0:00:18]} 27. Rd1 {[%emt 0:01:16]} Qb2+ {[%emt 0:00:19]} 28. Rd2 {[%emt 0:00:30]} Bxd2 {[%emt 0:00:07]} 29. Qxd2 {[%emt 0:00:03]} Qxd2+ {[%emt 0:00:02]} 30. Kxd2 {[%emt 0:00:02]} Rd8+ {[%emt 0:00:06]} 31. Kc2 {[%emt 0:00:06]} Rd4 {[%emt 0:00:03]} 32. Kc3 {[%emt 0:00:08]} c5 {[%emt 0:00:08]} 33. Bd5 {[%emt 0:00:05]} b4+ {[%emt 0:00:01]} 34. Kc2 {[%emt 0:00:05]} c4 {[%emt 0:00:01]} 35. Bc6 {[%emt 0:00:15]} a3 {[%emt 0:00:11]} 36. Bb5 {[%emt 0:00:09]} b3+ {[%emt 0:00:04]} 37. Kc3 {[%emt 0:00:15]} a2 {[%emt 0:00:01]} 38. Kb2 {[%emt 0:00:03]} c3+ {[%emt 0:00:02]} 0-1

[Event "African Online-ch U20-Open 2021"]
[Site "Online"]
[Date "2021.02.01"]
[Round "8.18"]
[White "Soojay, Jorah"]
[Black "Dutt Dakshesh"]
[Result "1-0"]
[ECO "C50"]
[WhiteElo "1478"]
[BlackElo "1549"]
[Annotator "NA RC"]
[PlyCount "77"]
[EventDate "2021.02.01"]
[EventType "swiss"]
[EventCountry "NET"]
[SourceTitle "playchess.com"]
[Source "ChessBase"]
[SourceQuality "1"]
[TimeControl "1500+10"]

1. e4 {[%emt 0:00:00]} e5 {[%emt 0:00:07]} 2. Nf3 {[%emt 0:00:03]} Nc6 {[%emt 0:00:03]} 3. Bc4 {[%emt 0:00:02]} Bc5 {[%emt 0:00:13]} 4. d3 {[%emt 0:00:12]} Nf6 {[%emt 0:00:07]} 5. Bg5 {[%emt 0:00:05]} O-O {[%emt 0:00:32]} 6. a3 {[%emt 0:00:07]} Be7 {[%emt 0:00:05]} 7. Nc3 {[%emt 0:00:06]} d6 {[%emt 0:00:20]} 8. h3 {[%emt 0:00:11]} h6 {[%emt 0:00:19]} 9. Bh4 {[%emt 0:00:09]} Be6 {[%emt 0:00:42]} 10. Ba2 {[%emt 0:00:37]} a6 {[%emt 0:01:45]} 11. Qd2 {[%emt 0:00:06]} b5 {[%emt 0:00:18]} 12. Bxf6 {[%emt 0:00:11]} Bxf6 {[%emt 0:00:07]} 13. Nd5 {[%emt 0:00:05]} Rb8 {[%emt 0:01:57]} 14. g4 {[%emt 0:00:11]} Re8 {[%emt 0:01:05]} 15. Rg1 {[%emt 0:00:23]} Rc8 {[%emt 0:00:48]} 16. g5 {[%emt 0:00:59]} hxg5 {[%emt 0:00:14]} 17. Nxg5 {[%emt 0:00:04]} Bxg5 {[%emt 0:00:07]} 18. Rxg5 {[%emt 0:00:23]} Nd4 {[%emt 0:01:19]} 19. Rg3 {[%emt 0:00:37]} Qh4 {[%emt 0:02:25]} 20. c3 {[%emt 0:01:01]} Nc6 {[%emt 0:00:35]} 21. O-O-O {[%emt 0:00:08]} Na5 {[%emt 0:01:26]} 22. c4 {[%emt 0:00:36]} Nb7 {[%emt 0:00:44]} 23. Rdg1 {[%emt 0:00:09]} g6 {[%emt 0:00:18]} 24. f4 {[%emt 0:01:07]} exf4 {[%emt 0:00:36]} 25. Nxf4 {[%emt 0:00:06]} Nc5 {[%emt 0:01:07]} 26. Kb1 {[%emt 0:03:00]} bxc4 {[%emt 0:00:24]} 27. Qf2 {[%emt 0:01:20]} Qf6 {[%emt 0:01:01]} 28. Rxg6+ {[%emt 0:00:06]} fxg6 {[%emt 0:00:24]} 29. Rxg6+ {[%emt 0:00:05]} Kf7 {[%emt 0:00:06]} 30. Rxf6+ {[%emt 0:00:06]} Kxf6 {[%emt 0:00:04]} 31. Nxe6+ {[%emt 0:00:07]} Kxe6 {[%emt 0:00:10]} 32. Bxc4+ {[%emt 0:00:02]} Kd7 {[%emt 0:00:14]} 33. Qf5+ {[%emt 0:00:13]} Kc6 {[%emt 0:01:03]} 34. d4 {[%emt 0:00:15]} Na4 {[%emt 0:00:39]} 35. Bxa6 {[%emt 0:00:23]} Rb8 {[%emt 0:00:17]} 36. Qd5+ {[%emt 0:00:05]} Kb6 {[%emt 0:00:18]} 37. Qb5+ {[%emt 0:00:05]} Ka7 {[%emt 0:00:03]} 38. Qxa4 {[%emt 0:00:04]} Rb6 {[%emt 0:00:01]} 39. Bb5+ {[%emt 0:00:05]} 1-0

[Event "African Online-ch U20-Open 2021"]
[Site "Online"]
[Date "2021.02.01"]
[Round "8.20"]
[White "Karania, Hardiv"]
[Black "Belattar, Mohamed Walid"]
[Result "0-1"]
[ECO "A45"]
[WhiteElo "1317"]
[BlackElo "1214"]
[Annotator "NA RC"]
[PlyCount "120"]
[EventDate "2021.02.01"]
[EventType "swiss"]
[EventCountry "NET"]
[SourceTitle "playchess.com"]
[Source "ChessBase"]
[SourceQuality "1"]
[TimeControl "1500+10"]

1. d4 {[%emt 0:00:06]} Nf6 {[%emt 0:22:04]} 2. Bf4 {[%emt 0:00:09]} e6 {[%emt 0:00:04]} 3. c3 {[%emt 0:00:11]} b6 {[%emt 0:00:36]} 4. f3 {[%emt 0:00:19]} Bb7 {[%emt 0:00:36]} 5. Nd2 {[%emt 0:00:16]} Be7 {[%emt 0:00:05]} 6. e4 {[%emt 0:00:14]} d5 {[%emt 0:00:08]} 7. e5 {[%emt 0:00:10]} Nfd7 {[%emt 0:00:12]} 8. Bd3 {[%emt 0:00:27]} O-O {[%emt 0:00:17]} 9. Ne2 {[%emt 0:00:07]} c5 {[%emt 0:00:04]} 10. O-O {[%emt 0:00:46]} Nc6 {[%emt 0:00:13]} 11. Qc2 {[%emt 0:00:20]} g6 {[%emt 0:00:16]} 12. b3 {[%emt 0:00:02]} cxd4 {[%emt 0:01:29]} 13. cxd4 {[%emt 0:00:12]} Nb4 {[%emt 0:00:05]} 14. Qb1 {[%emt 0:00:48]} Nxd3 {[%emt 0:00:12]} 15. Qxd3 {[%emt 0:00:13]} a5 {[%emt 0:00:17]} 16. a4 {[%emt 0:00:05]} Ba6 {[%emt 0:00:09]} 17. Qe3 {[%emt 0:00:17]} Bxe2 {[%emt 0:00:34]} 18. Qxe2 {[%emt 0:00:04]} Rc8 {[%emt 0:00:08]} 19. Rac1 {[%emt 0:00:21]} Rxc1 {[%emt 0:00:25]} 20. Rxc1 {[%emt 0:00:05]} Bg5 {[%emt 0:00:06]} 21. Be3 {[%emt 0:00:14]} Bxe3+ {[%emt 0:00:06]} 22. Qxe3 {[%emt 0:00:04]} Qe7 {[%emt 0:00:08]} 23. f4 {[%emt 0:00:18]} Qd8 {[%emt 0:00:19]} 24. Nf3 {[%emt 0:00:04]} Qb8 {[%emt 0:00:05]} 25. Ng5 {[%emt 0:00:16]} h6 {[%emt 0:00:07]} 26. Nf3 {[%emt 0:00:12]} Rc8 {[%emt 0:00:07]} 27. g4 {[%emt 0:00:25]} Kg7 {[%emt 0:00:07]} 28. Nh4 {[%emt 0:00:44]} Rxc1+ {[%emt 0:00:07]} 29. Qxc1 {[%emt 0:00:04]} b5 {[%emt 0:00:04]} 30. Qc6 {[%emt 0:00:43]} bxa4 {[%emt 0:00:29]} 31. Qxa4 {[%emt 0:00:42]} Qa7 {[%emt 0:00:09]} 32. Nf3 {[%emt 0:00:59]} Nb6 {[%emt 0:00:14]} 33. Qa1 {[%emt 0:03:58]} a4 {[%emt 0:00:05]} 34. bxa4 {[%emt 0:00:03]} Qxa4 {[%emt 0:00:10]} 35. Qxa4 {[%emt 0:00:41]} Nxa4 {[%emt 0:00:04]} 36. Kf2 {[%emt 0:00:08]} f6 {[%emt 0:00:19]} 37. h4 {[%emt 0:00:06]} Nc3 {[%emt 0:00:07]} 38. Ke3 {[%emt 0:00:48]} Ne4 {[%emt 0:00:10]} 39. h5 {[%emt 0:00:30]} gxh5 {[%emt 0:00:14]} 40. gxh5 {[%emt 0:00:02]} Ng3 {[%emt 0:00:03]} 41. Nh4 {[%emt 0:00:31]} Nxh5 {[%emt 0:00:06]} 42. f5 {[%emt 0:00:06]} Kf7 {[%emt 0:00:15]} 43. Kf3 {[%emt 0:00:27]} Ng7 {[%emt 0:00:13]} 44. Kf4 {[%emt 0:00:10]} fxe5+ {[%emt 0:00:16]} 45. Kxe5 {[%emt 0:00:16]} Nxf5 {[%emt 0:00:09]} 46. Nf3 {[%emt 0:00:35]} Ke7 {[%emt 0:00:10]} 47. Nh2 {[%emt 0:00:48]} h5 {[%emt 0:00:06]} 48. Nf3 {[%emt 0:00:03]} h4 {[%emt 0:00:04]} 49. Ng5 {[%emt 0:00:06]} Ng3 {[%emt 0:00:17]} 50. Nxe6 {[%emt 0:02:27]} h3 {[%emt 0:00:08]} 51. Nf4 {[%emt 0:01:46]} h2 {[%emt 0:00:08]} 52. Nxd5+ {[%emt 0:00:03]} Kd8 {[%emt 0:00:10]} 53. Nf4 {[%emt 0:00:18]} h1=Q {[%emt 0:00:06]} 54. d5 {[%emt 0:00:02]} Qe4+ {[%emt 0:00:08]} 55. Kd6 {[%emt 0:00:04]} Qxf4+ {[%emt 0:00:03]} 56. Kc6 {[%emt 0:00:02]} Nf5 {[%emt 0:00:08]} 57. d6 {[%emt 0:00:03]} Qxd6+ {[%emt 0:00:03]} 58. Kb7 {[%emt 0:00:03]} Qc5 {[%emt 0:00:11]} 59. Ka8 {[%emt 0:00:03]} Qb5 {[%emt 0:00:06]} 60. Ka7 {[%emt 0:00:03]} Kc7 {[%emt 0:00:06]} 0-1

[Event "African Online-ch U20-Open 2021"]
[Site "Online"]
[Date "2021.02.01"]
[Round "9.7"]
[White "Spink, Benjamin M"]
[Black "George Samir, David"]
[Result "0-1"]
[ECO "B88"]
[WhiteElo "2110"]
[BlackElo "1775"]
[Annotator "RC"]
[PlyCount "104"]
[EventDate "2021.02.01"]
[EventType "swiss"]
[EventCountry "NET"]
[SourceTitle "playchess.com"]
[Source "ChessBase"]
[SourceQuality "1"]
[TimeControl "1500+10"]

1. e4 {[%emt 0:00:00]} c5 {[%emt 0:00:06]} 2. Nf3 {[%emt 0:00:04]} d6 {[%emt 0:00:03]} 3. d4 {[%emt 0:00:03]} cxd4 {[%emt 0:00:03]} 4. Nxd4 {[%emt 0:00:02]} Nf6 {[%emt 0:00:04]} 5. Nc3 {[%emt 0:00:02]} Nc6 {[%emt 0:00:02]} 6. Bc4 {[%emt 0:00:09]} e6 {[%emt 0:00:02]} 7. Bb3 {[%emt 0:00:08]} Be7 {[%emt 0:00:04]} 8. O-O {[%emt 0:00:05]} O-O {[%emt 0:00:20]} 9. Be3 {[%emt 0:00:04]} a6 {[%emt 0:00:04]} 10. f4 {[%emt 0:00:04]} Qc7 {[%emt 0:01:10]} 11. f5 {[%emt 0:00:15]} e5 {[%emt 0:00:05]} 12. Nde2 {[%emt 0:00:09]} Ng4 {[%emt 0:00:25]} 13. Qd2 {[%emt 0:01:26]} Nxe3 {[%emt 0:00:38]} 14. Qxe3 {[%emt 0:00:03]} b5 {[%emt 0:00:18]} 15. Nd5 {[%emt 0:00:15]} Qa7 {[%emt 0:00:11]} 16. Qxa7 {[%emt 0:00:21]} Rxa7 {[%emt 0:00:03]} 17. Nxe7+ {[%emt 0:00:25]} Nxe7 {[%emt 0:00:08]} 18. Rad1 {[%emt 0:00:14]} Rd8 {[%emt 0:01:40]} 19. f6 {[%emt 0:00:57]} Ng6 {[%emt 0:00:07]} 20. fxg7 {[%emt 0:00:05]} Kxg7 {[%emt 0:00:03]} 21. Ng3 {[%emt 0:00:35]} Bg4 {[%emt 0:01:07]} 22. Nf5+ {[%emt 0:00:43]} Bxf5 {[%emt 0:00:14]} 23. Rxf5 {[%emt 0:00:11]} Rad7 {[%emt 0:00:25]} 24. g3 {[%emt 0:00:27]} Nf8 {[%emt 0:01:19]} 25. Rdf1 {[%emt 0:02:46]} Ne6 {[%emt 0:00:08]} 26. Rf6 {[%emt 0:00:47]} Re7 {[%emt 0:01:46]} 27. h4 {[%emt 0:00:11]} Rdd7 {[%emt 0:01:56]} 28. h5 {[%emt 0:01:01]} h6 {[%emt 0:00:16]} 29. c3 {[%emt 0:01:15]} Ng5 {[%emt 0:00:44]} 30. Bd5 {[%emt 0:00:16]} Nh3+ {[%emt 0:00:11]} 31. Kg2 {[%emt 0:00:13]} Nf4+ {[%emt 0:00:04]} 32. gxf4 {[%emt 0:01:37]} Kxf6 {[%emt 0:00:14]} 33. fxe5+ {[%emt 0:00:02]} Kg7 {[%emt 0:00:02]} 34. exd6 {[%emt 0:00:04]} Rxd6 {[%emt 0:00:04]} 35. Rf3 {[%emt 0:01:30]} Rf6 {[%emt 0:00:54]} 36. Rg3+ {[%emt 0:01:32]} Kf8 {[%emt 0:00:11]} 37. Rg4 {[%emt 0:00:38]} Re5 {[%emt 0:00:11]} 38. Rh4 {[%emt 0:00:31]} Rg5+ {[%emt 0:00:38]} 39. Kh1 {[%emt 0:00:04]} Rf1+ {[%emt 0:00:16]} 40. Kh2 {[%emt 0:00:04]} Ke7 {[%emt 0:00:48]} 41. b4 {[%emt 0:01:25]} Rf2+ {[%emt 0:00:11]} 42. Kh1 {[%emt 0:00:19]} Rg3 {[%emt 0:00:43]} 43. c4 {[%emt 0:01:00]} Rc3 {[%emt 0:00:05]} 44. Kg1 {[%emt 0:00:06]} Rxa2 {[%emt 0:00:16]} 45. Rf4 {[%emt 0:00:05]} Rc1+ {[%emt 0:00:03]} 46. Rf1 {[%emt 0:00:03]} Rxf1+ {[%emt 0:00:42]} 47. Kxf1 {[%emt 0:00:03]} Rb2 {[%emt 0:00:27]} 48. cxb5 {[%emt 0:00:49]} axb5 {[%emt 0:00:05]} 49. Bc6 {[%emt 0:00:25]} Rxb4 {[%emt 0:00:05]} 50. Ke2 {[%emt 0:00:05]} Rb3 {[%emt 0:00:10]} 51. Kd2 {[%emt 0:00:32]} b4 {[%emt 0:00:15]} 52. Kc2 {[%emt 0:00:11]} Rc3+ {[%emt 0:00:04]} 0-1